Workbook

Sheet Sheet1
B2: <Company Name>
B3: Income Statement
B4: For the Period Ending <Date>
D5: <Current Month> | E5: <Prior Year Month> | F5: Variance
B6: Revenue
B7: Sales | D7: $91,675.00 | E7: $82,500.00 | F7: =D7-E7 -> $9,175.00
B8: Sales Returns | D8: 410.00 | E8: 370.00 | F8: 40.00
B9: Sales Discounts | D9: 3,500.00 | E9: 3,150.00 | F9: 350.00
B10: <Other Revenue> | D10: 0 | E10: 0 | F10: 0
B11: <Other Revenue> | D11: 0 | E11: 0 | F11: 0
B12: <Other Revenue> | D12: 0 | E12: 0 | F12: 0
B13: Net Sales | D13: =SUM(D7:D12) -> $95,585.00 | E13: =SUM(E7:E12) -> $86,020.00 | F13: =SUM(F7:F12) -> $9,565.00
B14: Cost of Goods Sold | D14: 70,000.00 | E14: 63,000.00 | F14: =D14-E14 -> 7,000.00
B15: Gross Profit | D15: =D13-D14 -> $25,585.00 | E15: =E13-E14 -> $23,020.00 | F15: =F13-F14 -> $2,565.00
B16: Operating Expenses
B17: Salaries & Wages | D17: $10,500.00 | E17: $9,450.00 | F17: =D17-E17 -> $1,050.00
B18: Depreciation Expenses | D18: 415.00 | E18: 375.00 | F18: =D18-E18 -> 40.00
B19: Office Expenses | D19: 395.00 | E19: 355.00 | F19: 40.00
B20: Rent Expense | D20: 950.00 | E20: 855.00 | F20: 95.00
B21: Travel Expenses | D21: 625.00 | E21: 570.00 | F21: 55.00
B22: Maintenance Expenses | D22: 125.00 | E22: 110.00 | F22: 15.00
B23: Advertising Expenses | D23: 550.00 | E23: 495.00 | F23: 55.00
B24: <Other Expense> | D24: 0 | E24: 0 | F24: 0
B25: <Other Expense> | D25: 0 | E25: 0 | F25: 0
B26: <Other Expense> | D26: 0 | E26: 0 | F26: =D26-E26 -> 0
B27: Total Operating Expenses | D27: =SUM(D17:D26) -> $13,560.00 | E27: =SUM(E17:E26) -> $12,210.00 | F27: =SUM(F17:F26) -> $1,350.00
B28: Income From Operations | D28: =D15-D27 -> $12,025.00 | E28: =E15-E27 -> $10,810.00 | F28: =F15-F27 -> $1,215.00
B29: Interest Income (Expense) | D29: (85.00) | E29: (75.00) | F29: =D29-E29 -> (10.00)
B30: Income Before Income Taxes | D30: =D28+D29 -> $11,940.00 | E30: =E28+E29 -> $10,735.00 | F30: =F28+F29 -> $1,205.00
B31: Income Tax Expense | D31: 625.00 | E31: 550.00 | F31: =D31-E31 -> 75.00
B32: Net Income | D32: =D30-D31 -> $11,315.00 | E32: =E30-E31 -> $10,185.00 | F32: =F30-F31 -> $1,130.00
